[Event "Redbull chessmasters 2019"]
[Site "Istambul"]
[Date "2019.11.24"]
[Round "5.13"]
[White "Tasdogen, Dincer"]
[Black "Ozenir, Ekin Baris"]
[Result "1/2-1/2"]
[ECO "C00"]
[WhiteElo "2301"]
[BlackElo "2274"]
[Annotator "NA"]
[PlyCount "160"]
[EventDate "2019.11.23"]
[EventType "k.o."]
[EventCountry "TUR"]
[SourceTitle "playchess.com"]
[Source "ChessBase"]
[SourceQuality "1"]
[TimeControl "600+5"]

1. e4 {[%emt 0:00:00]} e6 {[%emt 0:00:00]} 2. c4 {[%emt 0:00:10]} d5 {[%emt 0:00:02]} 3. cxd5 {[%emt 0:00:05]} exd5 {[%emt 0:00:05]} 4. exd5 {[%emt 0:00:05]} Nf6 {[%emt 0:00:05]} 5. Bc4 {[%emt 0:00:05]} Be7 {[%emt 0:00:05]} 6. Nc3 {[%emt 0:00:05]} O-O {[%emt 0:00:05]} 7. Nge2 {[%emt 0:00:05]} Nbd7 {[%emt 0:00:01]} 8. d3 {[%emt 0:00:29]} Nb6 {[%emt 0:00:05]} 9. Qb3 {[%emt 0:00:00]} Bg4 {[%emt 0:00:29]} 10. Ng3 {[%emt 0:00:18]} a5 {[%emt 0:00:22]} 11. a4 {[%emt 0:00:05]} Bb4 {[%emt 0:00:05]} 12. O-O {[%emt 0:00:05]} Bxc3 {[%emt 0:00:04]} 13. bxc3 {[%emt 0:00:19]} Nfxd5 {[%emt 0:00:03]} 14. Bxd5 {[%emt 0:00:42]} Qxd5 {[%emt 0:00:08]} 15. c4 {[%emt 0:00:14]} Qc6 {[%emt 0:00:19]} 16. Be3 {[%emt 0:00:07]} Nd7 {[%emt 0:00:08]} 17. Rfe1 {[%emt 0:01:33]} b6 {[%emt 0:00:11]} 18. Qc3 {[%emt 0:01:09]} Rad8 {[%emt 0:00:29]} 19. Bd4 {[%emt 0:00:38]} f6 {[%emt 0:00:08]} 20. Re7 {[%emt 0:01:51]} Qd6 {[%emt 0:00:06]} 21. Re4 {[%emt 0:00:46]} Be6 {[%emt 0:01:22]} 22. Rae1 {[%emt 0:00:01]} Bf7 {[%emt 0:00:23]} 23. Nf5 {[%emt 0:00:26]} Qb4 {[%emt 0:00:08]} 24. Qa1 {[%emt 0:00:32]} Rfe8 {[%emt 0:00:18]} 25. Ne7+ {[%emt 0:00:04]} Rxe7 {[%emt 0:00:35]} 26. Rxe7 {[%emt 0:00:05]} Ne5 {[%emt 0:00:00]} 27. Rxc7 {[%emt 0:00:31]} Rxd4 {[%emt 0:00:19]} 28. Rc8+ {[%emt 0:00:17]} Be8 {[%emt 0:00:00]} 29. Rxe8+ {[%emt 0:00:35]} Kf7 {[%emt 0:00:05]} 30. Rc8 {[%emt 0:00:15]} Rxd3 {[%emt 0:00:30]} 31. Rc7+ {[%emt 0:00:01]} Kg6 {[%emt 0:00:10]} 32. h4 {[%emt 0:00:41]} Qd6 {[%emt 0:00:13]} 33. h5+ {[%emt 0:00:03]} Kh6 {[%emt 0:00:22]} 34. Qc1+ g5 35. hxg6+ Kxg6 {[%emt 0:00:06]} 36. Rc8 {[%emt 0:00:11]} Kg7 {[%emt 0:00:21]} 37. c5 {[%emt 0:00:17]} bxc5 {[%emt 0:00:31]} 38. Qxc5 {[%emt 0:00:03]} Qe6 {[%emt 0:00:05]} 39. Qf8+ {[%emt 0:00:04]} Kg6 {[%emt 0:00:08]} 40. Qg8+ {[%emt 0:00:03]} Qxg8 {[%emt 0:00:01]} 41. Rxg8+ {[%emt 0:00:02]} Kf7 {[%emt 0:00:00]} 42. Ra8 {[%emt 0:00:05]} Rd5 {[%emt 0:00:05]} 43. Rb1 {[%emt 0:00:01]} Nc4 {[%emt 0:00:17]} 44. Rb7+ {[%emt 0:00:05]} Kg6 {[%emt 0:00:00]} 45. Raa7 {[%emt 0:00:08]} h5 {[%emt 0:00:19]} 46. g3 {[%emt 0:00:07]} Rd1+ {[%emt 0:00:05]} 47. Kg2 {[%emt 0:00:00]} Ra1 {[%emt 0:00:03]} 48. Rg7+ {[%emt 0:00:11]} Kf5 {[%emt 0:00:05]} 49. Rh7 {[%emt 0:00:05]} Rxa4 {[%emt 0:00:07]} 50. Rxh5+ {[%emt 0:00:00]} Kg6 {[%emt 0:00:00]} 51. Rah7 {[%emt 0:00:00]} Ne5 {[%emt 0:00:14]} 52. R5h6+ {[%emt 0:00:15]} Kf5 {[%emt 0:00:05]} 53. Rh4 {[%emt 0:00:03]} Ra2 {[%emt 0:00:01]} 54. Rf4+ {[%emt 0:00:23]} Kg6 {[%emt 0:00:05]} 55. Rhh4 {[%emt 0:00:06]} Nd3 {[%emt 0:00:00]} 56. Rhg4+ {[%emt 0:00:00]} Kf7 {[%emt 0:00:09]} 57. Rf5 {[%emt 0:00:05]} Ke6 {[%emt 0:00:02]} 58. Rb5 {[%emt 0:00:06]} Nxf2 {[%emt 0:00:05]} 59. Rc4 {[%emt 0:00:05]} Ne4+ {[%emt 0:00:14]} 60. Kh3 {[%emt 0:00:03]} f5 {[%emt 0:00:05]} 61. Rc6+ {[%emt 0:00:05]} Kd7 {[%emt 0:00:05]} 62. Ra6 {[%emt 0:00:05]} Ra3 {[%emt 0:00:05]} 63. Raxa5 {[%emt 0:00:05]} Rxg3+ {[%emt 0:00:05]} 64. Kh2 {[%emt 0:00:05]} Rf3 {[%emt 0:00:05]} 65. Ra6 {[%emt 0:00:05]} Kc7 {[%emt 0:00:50]} 66. Rg6 {[%emt 0:00:07]} Rf2+ {[%emt 0:00:44]} 67. Kg1 {[%emt 0:00:01]} Rf3 {[%emt 0:00:05]} 68. Kg2 {[%emt 0:00:05]} Rf2+ {[%emt 0:00:05]} 69. Kh3 {[%emt 0:00:05]} Rf3+ {[%emt 0:00:05]} 70. Kg2 {[%emt 0:00:05]} Rf2+ {[%emt 0:00:05]} 71. Kg1 {[%emt 0:00:05]} Rf3 {[%emt 0:00:05]} 72. Ra5 {[%emt 0:00:05]} Rg3+ {[%emt 0:00:05]} 73. Rxg3 {[%emt 0:00:05]} Nxg3 {[%emt 0:00:05]} 74. Kg2 {[%emt 0:00:05]} Ne4 {[%emt 0:00:05]} 75. Rxf5 {[%emt 0:00:05]} Nd6 {[%emt 0:00:05]} 76. Rh5 {[%emt 0:00:05]} Kd7 {[%emt 0:00:05]} 77. Kf3 {[%emt 0:00:05]} Ke6 {[%emt 0:00:05]} 78. Kf4 {[%emt 0:00:05]} Nf7 {[%emt 0:00:05]} 79. Ra5 {[%emt 0:00:05]} Nd6 {[%emt 0:00:05]} 80. Ra6 {[%emt 0:00:05]} Kd5 {[%emt 0:00:00]} 1/2-1/2

[Event "Redbull chessmasters 2019"]
[Site "Istambul"]
[Date "2019.11.24"]
[Round "5.14"]
[White "Alak, Agdar"]
[Black "Burcu, Cagatay"]
[Result "0-1"]
[ECO "D52"]
[WhiteElo "1482"]
[BlackElo "2331"]
[Annotator "NA"]
[PlyCount "70"]
[EventDate "2019.11.23"]
[EventType "k.o."]
[EventCountry "TUR"]
[SourceTitle "playchess.com"]
[Source "ChessBase"]
[SourceQuality "1"]
[TimeControl "600+5"]

1. Nf3 {[%emt 0:00:00]} d5 {[%emt 0:00:00]} 2. d4 {[%emt 0:00:05]} Nf6 {[%emt 0:00:05]} 3. c4 {[%emt 0:00:05]} c6 {[%emt 0:00:05]} 4. Nc3 {[%emt 0:00:00]} e6 {[%emt 0:00:00]} 5. Bg5 {[%emt 0:00:00]} Nbd7 {[%emt 0:00:00]} 6. e3 {[%emt 0:00:00]} Qa5 {[%emt 0:00:02]} 7. Bxf6 {[%emt 0:00:10]} Nxf6 {[%emt 0:00:03]} 8. Qa4 {[%emt 0:00:23]} Qxa4 {[%emt 0:00:10]} 9. Nxa4 {[%emt 0:00:05]} dxc4 {[%emt 0:00:05]} 10. Nc3 {[%emt 0:00:01]} b5 {[%emt 0:00:09]} 11. a4 {[%emt 0:00:08]} Bb4 {[%emt 0:00:12]} 12. Nd2 {[%emt 0:00:19]} Bxc3 {[%emt 0:00:27]} 13. bxc3 {[%emt 0:00:02]} Ke7 {[%emt 0:00:12]} 14. g3 {[%emt 0:00:08]} a5 {[%emt 0:00:27]} 15. Bg2 {[%emt 0:00:10]} Ra6 {[%emt 0:00:02]} 16. Ke2 {[%emt 0:00:30]} Bd7 {[%emt 0:00:06]} 17. Ne4 {[%emt 0:00:12]} Nxe4 {[%emt 0:00:17]} 18. Bxe4 {[%emt 0:00:01]} b4 {[%emt 0:00:34]} 19. cxb4 {[%emt 0:00:05]} axb4 {[%emt 0:00:00]} 20. Rhc1 {[%emt 0:00:13]} c3 {[%emt 0:00:05]} 21. Bc2 {[%emt 0:00:00]} Ra5 {[%emt 0:00:20]} 22. Bb3 {[%emt 0:00:03]} Rha8 {[%emt 0:00:04]} 23. Ra2 {[%emt 0:00:04]} e5 {[%emt 0:00:16]} 24. Rb1 {[%emt 0:00:36]} Bf5 {[%emt 0:00:05]} 25. Rc1 {[%emt 0:00:37]} Be6 {[%emt 0:00:25]} 26. Bxe6 {[%emt 0:00:30]} Kxe6 {[%emt 0:00:02]} 27. Rb1 {[%emt 0:01:17]} Rxa4 {[%emt 0:00:08]} 28. Rxa4 {[%emt 0:00:04]} Rxa4 {[%emt 0:00:05]} 29. dxe5 {[%emt 0:00:03]} Kd5 {[%emt 0:00:36]} 30. Kd3 {[%emt 0:00:08]} Kc5 {[%emt 0:00:06]} 31. f3 {[%emt 0:00:58]} Ra2 {[%emt 0:00:03]} 32. Rc1 {[%emt 0:01:17]} Rd2+ {[%emt 0:00:05]} 33. Ke4 {[%emt 0:00:03]} c2 {[%emt 0:00:03]} 34. f4 {[%emt 0:01:14]} b3 {[%emt 0:00:02]} 35. e6 {[%emt 0:00:09]} fxe6 {[%emt 0:00:03]} 0-1

[Event "Redbull chessmasters 2019"]
[Site "Istambul"]
[Date "2019.11.24"]
[Round "5.15"]
[White "Yazici, Ugur Doga"]
[Black "Sabahi, Cem"]
[Result "1/2-1/2"]
[ECO "B06"]
[WhiteElo "2195"]
[BlackElo "1604"]
[Annotator "NA"]
[PlyCount "116"]
[EventDate "2019.11.23"]
[EventType "k.o."]
[EventCountry "TUR"]
[SourceTitle "playchess.com"]
[Source "ChessBase"]
[SourceQuality "1"]
[TimeControl "600+5"]

1. e4 {[%emt 0:00:00]} g6 {[%emt 0:00:00]} 2. d4 {[%emt 0:00:05]} Bg7 {[%emt 0:00:05]} 3. Nf3 {[%emt 0:00:05]} d6 {[%emt 0:00:00]} 4. Nbd2 {[%emt 0:00:00]} Nd7 {[%emt 0:00:21]} 5. Bd3 {[%emt 0:00:02]} e5 {[%emt 0:00:07]} 6. dxe5 {[%emt 0:00:13]} dxe5 {[%emt 0:00:05]} 7. Nc4 {[%emt 0:00:05]} Ne7 {[%emt 0:00:05]} 8. b3 {[%emt 0:00:05]} Nc6 {[%emt 0:00:39]} 9. Ba3 {[%emt 0:00:12]} b5 {[%emt 0:00:32]} 10. Ne3 {[%emt 0:00:05]} b4 {[%emt 0:00:00]} 11. Bb2 {[%emt 0:01:33]} Nd4 {[%emt 0:00:02]} 12. a3 {[%emt 0:00:19]} c5 {[%emt 0:01:10]} 13. axb4 {[%emt 0:00:10]} cxb4 {[%emt 0:00:01]} 14. Nxd4 {[%emt 0:00:13]} exd4 {[%emt 0:00:05]} 15. Nd5 {[%emt 0:00:00]} O-O {[%emt 0:01:28]} 16. Nxb4 {[%emt 0:00:27]} Nc5 {[%emt 0:00:04]} 17. O-O {[%emt 0:00:09]} Bb7 {[%emt 0:00:04]} 18. Re1 {[%emt 0:00:39]} Re8 {[%emt 0:00:15]} 19. f3 {[%emt 0:01:04]} a5 {[%emt 0:00:05]} 20. Na2 {[%emt 0:00:04]} a4 {[%emt 0:00:08]} 21. Nc1 {[%emt 0:00:10]} Qb6 {[%emt 0:01:41]} 22. Ba3 {[%emt 0:01:10]} Nxd3 {[%emt 0:00:37]} 23. Nxd3 {[%emt 0:00:32]} axb3 {[%emt 0:00:02]} 24. cxb3 {[%emt 0:00:02]} Rec8 {[%emt 0:00:24]} 25. Bb2 {[%emt 0:01:54]} Rxa1 {[%emt 0:00:09]} 26. Bxa1 {[%emt 0:00:27]} Ba6 {[%emt 0:00:11]} 27. Kh1 {[%emt 0:00:33]} Rb8 {[%emt 0:00:17]} 28. Nc1 {[%emt 0:00:31]} Qb4 {[%emt 0:00:56]} 29. e5 {[%emt 0:00:33]} d3 {[%emt 0:00:07]} 30. Re4 {[%emt 0:00:10]} Qa5 {[%emt 0:00:12]} 31. Ra4 {[%emt 0:00:28]} Qb5 {[%emt 0:00:14]} 32. Qd2 {[%emt 0:00:29]} Rd8 {[%emt 0:01:39]} 33. h3 {[%emt 0:00:06]} Rc8 {[%emt 0:00:28]} 34. Bc3 {[%emt 0:00:05]} Qc6 {[%emt 0:00:10]} 35. Na2 {[%emt 0:00:05]} Bb5 {[%emt 0:00:17]} 36. Re4 {[%emt 0:00:05]} Kf8 {[%emt 0:00:05]} 37. h4 {[%emt 0:00:05]} Kg8 {[%emt 0:00:05]} 38. h5 {[%emt 0:00:05]} f6 {[%emt 0:00:04]} 39. exf6 {[%emt 0:00:00]} Bxf6 {[%emt 0:00:08]} 40. Bxf6 {[%emt 0:00:00]} Qxf6 {[%emt 0:00:05]} 41. Nb4 {[%emt 0:00:00]} Qd6 {[%emt 0:00:07]} 42. hxg6 {[%emt 0:00:02]} hxg6 {[%emt 0:00:05]} 43. Rg4 {[%emt 0:00:05]} Kg7 {[%emt 0:00:05]} 44. Qb2+ {[%emt 0:00:05]} Qf6 {[%emt 0:00:05]} 45. Qxf6+ {[%emt 0:00:05]} Kxf6 {[%emt 0:00:05]} 46. Rd4 {[%emt 0:00:05]} Rc3 {[%emt 0:00:05]} 47. Nd5+ {[%emt 0:00:05]} Ke5 {[%emt 0:00:05]} 48. Nxc3 {[%emt 0:00:05]} Kxd4 {[%emt 0:00:05]} 49. Nxb5+ {[%emt 0:00:05]} Kc5 {[%emt 0:00:05]} 50. Nc3 {[%emt 0:00:05]} Kb4 {[%emt 0:00:05]} 51. Ne4 {[%emt 0:00:05]} Kxb3 {[%emt 0:00:05]} 52. Kh2 {[%emt 0:00:05]} Kc2 {[%emt 0:00:02]} 53. f4 {[%emt 0:00:07]} Kd1 {[%emt 0:00:05]} 54. g4 {[%emt 0:00:05]} Ke2 {[%emt 0:00:05]} 55. f5 {[%emt 0:00:05]} Ke3 {[%emt 0:00:05]} 56. Ng3 {[%emt 0:00:05]} d2 {[%emt 0:00:05]} 57. Nf1+ {[%emt 0:00:05]} Kf4 {[%emt 0:00:05]} 58. Nxd2 {[%emt 0:00:05]} Ke5 {[%emt 0:00:05]} 1/2-1/2

[Event "Redbull chessmasters 2019"]
[Site "Istambul"]
[Date "2019.11.24"]
[Round "5.16"]
[White "Sahin, Handenur"]
[Black "Aydin, Leyla"]
[Result "1-0"]
[ECO "C77"]
[WhiteElo "2014"]
[BlackElo "1333"]
[Annotator "NA"]
[PlyCount "57"]
[EventDate "2019.11.23"]
[EventType "k.o."]
[EventCountry "TUR"]
[SourceTitle "playchess.com"]
[Source "ChessBase"]
[SourceQuality "1"]
[TimeControl "600+5"]

1. e4 {[%emt 0:00:00]} e5 {[%emt 0:00:00]} 2. Nf3 {[%emt 0:00:05]} Nc6 {[%emt 0:00:05]} 3. Bb5 {[%emt 0:00:00]} a6 {[%emt 0:00:00]} 4. Ba4 {[%emt 0:00:05]} Nf6 {[%emt 0:00:04]} 5. d3 {[%emt 0:00:05]} Be7 {[%emt 0:00:04]} 6. O-O {[%emt 0:00:00]} b5 {[%emt 0:00:04]} 7. Bb3 {[%emt 0:00:00]} O-O {[%emt 0:00:05]} 8. a3 {[%emt 0:00:03]} d6 {[%emt 0:00:08]} 9. Nc3 {[%emt 0:00:34]} Re8 {[%emt 0:00:14]} 10. h3 {[%emt 0:00:31]} Nb8 {[%emt 0:01:01]} 11. Re1 {[%emt 0:01:03]} Nbd7 {[%emt 0:00:07]} 12. Bxf7+ {[%emt 0:00:50]} Kxf7 {[%emt 0:00:26]} 13. Ng5+ {[%emt 0:00:02]} Kg8 {[%emt 0:01:09]} 14. Ne6 {[%emt 0:00:07]} Bb7 {[%emt 0:00:00]} 15. Nxd8 {[%emt 0:00:00]} Raxd8 {[%emt 0:00:05]} 16. Be3 {[%emt 0:00:03]} c5 {[%emt 0:00:05]} 17. Ne2 {[%emt 0:00:11]} Nf8 {[%emt 0:00:17]} 18. Ng3 {[%emt 0:00:02]} Bc8 {[%emt 0:00:10]} 19. c3 {[%emt 0:00:08]} Ng6 {[%emt 0:00:05]} 20. d4 {[%emt 0:00:04]} Bf8 {[%emt 0:00:40]} 21. Qc2 {[%emt 0:00:19]} Bb7 {[%emt 0:00:29]} 22. dxc5 {[%emt 0:00:09]} dxc5 {[%emt 0:00:11]} 23. Rad1 {[%emt 0:00:01]} Nf4 {[%emt 0:00:30]} 24. f3 {[%emt 0:00:29]} N6h5 {[%emt 0:01:14]} 25. Nxh5 {[%emt 0:00:06]} Nxh5 {[%emt 0:00:05]} 26. Rxd8 {[%emt 0:00:05]} Rxd8 {[%emt 0:00:05]} 27. Rd1 {[%emt 0:00:05]} Rxd1+ {[%emt 0:00:05]} 28. Qxd1 {[%emt 0:00:05]} Nf6 {[%emt 0:00:05]} 29. Qd8 {[%emt 0:00:00]} 1-0

[Event "Redbull chessmasters 2019"]
[Site "Istambul"]
[Date "2019.11.24"]
[Round "6.1"]
[White "Aliakbarov, Anar"]
[Black "Kilic, Efe Mert"]
[Result "1/2-1/2"]
[ECO "A41"]
[WhiteElo "2219"]
[BlackElo "2247"]
[Annotator "NA"]
[PlyCount "145"]
[EventDate "2019.11.23"]
[EventType "k.o."]
[EventCountry "TUR"]
[SourceTitle "playchess.com"]
[Source "ChessBase"]
[SourceQuality "1"]
[TimeControl "600+5"]

1. d4 d6 2. c4 e5 3. d5 f5 4. e4 Nf6 5. Nc3 g6 6. exf5 gxf5 7. Nf3 Bg7 8. Bg5 h6 9. Bh4 Nbd7 10. Qc2 Nc5 11. b4 Na6 12. a3 Qe7 13. Be2 Qf7 14. O-O O-O 15. Rad1 Re8 16. Rfe1 Nh5 17. Bf1 Bd7 {[%emt 0:06:15]} 18. Nb5 {[%emt 0:08:40]} Qf8 {[%emt 0:01:19]} 19. c5 {[%emt 0:00:24]} Nf4 {[%emt 0:00:53]} 20. c6 {[%emt 0:00:07]} Bc8 {[%emt 0:02:12]} 21. Nxc7 {[%emt 0:00:15]} Nxc7 {[%emt 0:00:07]} 22. cxb7 {[%emt 0:00:01]} Bxb7 {[%emt 0:00:06]} 23. Qxc7 {[%emt 0:00:01]} Rab8 {[%emt 0:00:37]} 24. Qa5 {[%emt 0:01:07]} Qf7 {[%emt 0:00:09]} 25. Qxa7 {[%emt 0:00:16]} Ra8 {[%emt 0:00:13]} 26. Qb6 {[%emt 0:00:02]} Bf8 {[%emt 0:00:05]} 27. Qe3 {[%emt 0:01:06]} Nxd5 {[%emt 0:00:13]} 28. Qb3 {[%emt 0:00:05]} Nf4 {[%emt 0:00:05]} 29. Bc4 {[%emt 0:00:05]} d5 {[%emt 0:00:00]} 30. Bb5 {[%emt 0:00:05]} e4 {[%emt 0:00:08]} 31. Bxe8 {[%emt 0:00:05]} Rxe8 {[%emt 0:00:05]} 32. Bg3 {[%emt 0:00:05]} Nd3 {[%emt 0:00:05]} 33. Rxd3 {[%emt 0:00:05]} exd3 {[%emt 0:00:05]} 34. Rxe8 {[%emt 0:00:05]} Qxe8 {[%emt 0:00:05]} 35. Qxd3 {[%emt 0:00:05]} Qe4 {[%emt 0:00:05]} 36. Qxe4 {[%emt 0:00:05]} fxe4 {[%emt 0:00:05]} 37. Nd2 {[%emt 0:00:05]} Kf7 {[%emt 0:00:05]} 38. Be5 {[%emt 0:00:05]} Ke6 {[%emt 0:00:05]} 39. Bd4 {[%emt 0:00:05]} h5 {[%emt 0:00:05]} 40. Nb3 {[%emt 0:00:05]} Ba6 {[%emt 0:00:00]} 41. f3 {[%emt 0:00:00]} Kf5 {[%emt 0:00:03]} 42. Kf2 {[%emt 0:00:00]} Bb5 {[%emt 0:00:05]} 43. Bc5 {[%emt 0:00:06]} Bg7 {[%emt 0:00:00]} 44. Bd4 {[%emt 0:00:12]} Bc4 {[%emt 0:00:07]} 45. Bxg7 {[%emt 0:00:03]} Bxb3 {[%emt 0:00:05]} 46. Ke3 {[%emt 0:00:00]} Ba4 {[%emt 0:00:12]} 47. fxe4+ {[%emt 0:00:04]} dxe4 {[%emt 0:00:02]} 48. h3 {[%emt 0:00:03]} Bb5 {[%emt 0:00:05]} 49. g4+ {[%emt 0:00:05]} hxg4 {[%emt 0:00:05]} 50. hxg4+ {[%emt 0:00:05]} Kg6 {[%emt 0:00:08]} 51. Bd4 {[%emt 0:00:07]} Bc6 {[%emt 0:00:00]} 52. Kf4 {[%emt 0:00:01]} Kf7 {[%emt 0:00:00]} 53. Kf5 {[%emt 0:00:03]} Bd7+ {[%emt 0:00:01]} 54. Kxe4 {[%emt 0:00:05]} Bxg4 {[%emt 0:00:00]} 55. a4 {[%emt 0:00:01]} Ke6 {[%emt 0:00:01]} 56. Bc5 {[%emt 0:00:01]} Bd1 {[%emt 0:00:06]} 57. a5 {[%emt 0:00:03]} Be2 {[%emt 0:00:17]} 58. Bf8 {[%emt 0:00:15]} Kd7 {[%emt 0:00:18]} 59. Kd5 {[%emt 0:00:05]} Kc7 {[%emt 0:00:05]} 60. Kc5 {[%emt 0:00:00]} Kb7 {[%emt 0:00:00]} 61. Bd6 {[%emt 0:00:10]} Bf1 {[%emt 0:00:00]} 62. Kd4 {[%emt 0:00:28]} Be2 {[%emt 0:00:04]} 63. Ke3 {[%emt 0:00:00]} Bf1 {[%emt 0:00:01]} 64. Kf2 {[%emt 0:00:02]} Bd3 {[%emt 0:00:05]} 65. Bc5 {[%emt 0:00:05]} Bc4 {[%emt 0:00:05]} 66. Kg3 {[%emt 0:00:05]} Bd3 {[%emt 0:00:05]} 67. Kf4 {[%emt 0:00:05]} Bc4 {[%emt 0:00:00]} 68. Ke5 {[%emt 0:00:00]} Bd3 {[%emt 0:00:00]} 69. Kd6 {[%emt 0:00:00]} Bf1 {[%emt 0:00:00]} 70. b5 {[%emt 0:00:07]} Bxb5 {[%emt 0:00:00]} 71. a6+ {[%emt 0:00:05]} Ka8 {[%emt 0:00:00]} 72. a7 {[%emt 0:00:00]} Bc6 {[%emt 0:00:00]} 73. Kxc6 {[%emt 0:00:01]} 1/2-1/2

[Event "Redbull chessmasters 2019"]
[Site "Istambul"]
[Date "2019.11.24"]
[Round "6.2"]
[White "Tarlabasi, Emirhan"]
[Black "Eren, Ataberk"]
[Result "1-0"]
[ECO "A73"]
[WhiteElo "2316"]
[BlackElo "2284"]
[Annotator "NA"]
[PlyCount "91"]
[EventDate "2019.11.23"]
[EventType "k.o."]
[EventCountry "TUR"]
[SourceTitle "playchess.com"]
[Source "ChessBase"]
[SourceQuality "1"]
[TimeControl "600+5"]

1. d4 Nf6 2. c4 e6 3. Nf3 c5 4. d5 exd5 5. cxd5 d6 6. Nc3 g6 7. Nd2 Bg7 8. e4 O-O 9. Be2 Na6 10. O-O Nc7 11. a4 b6 12. f4 Ba6 13. Bb5 Bxb5 14. axb5 a6 15. bxa6 b5 16. Qf3 Re8 17. e5 dxe5 18. fxe5 Rxe5 19. d6 {[%emt 0:04:50]} Ne6 {[%emt 0:09:43]} 20. Nxb5 {[%emt 0:00:43]} Nd4 {[%emt 0:01:38]} 21. Nxd4 {[%emt 0:00:33]} cxd4 {[%emt 0:00:01]} 22. Nc4 {[%emt 0:00:10]} Rc5 {[%emt 0:00:02]} 23. b3 {[%emt 0:00:35]} Rf5 {[%emt 0:00:00]} 24. Qd3 {[%emt 0:00:15]} Rxf1+ {[%emt 0:00:06]} 25. Kxf1 {[%emt 0:00:45]} Ng4 {[%emt 0:00:07]} 26. Bf4 {[%emt 0:00:12]} g5 {[%emt 0:00:19]} 27. Bg3 {[%emt 0:00:30]} h5 {[%emt 0:00:01]} 28. Qf3 {[%emt 0:00:12]} Ne3+ {[%emt 0:00:09]} 29. Nxe3 {[%emt 0:00:10]} dxe3 {[%emt 0:00:01]} 30. Ra4 {[%emt 0:00:44]} h4 {[%emt 0:00:09]} 31. Be1 {[%emt 0:00:05]} Ra7 {[%emt 0:00:12]} 32. Qxe3 {[%emt 0:00:11]} Qd7 {[%emt 0:00:03]} 33. Kg1 {[%emt 0:00:51]} Ra8 {[%emt 0:00:04]} 34. a7 {[%emt 0:01:14]} Qxd6 {[%emt 0:00:05]} 35. h3 {[%emt 0:00:05]} Qd7 {[%emt 0:00:05]} 36. Bf2 {[%emt 0:00:05]} Qd1+ {[%emt 0:00:05]} 37. Kh2 {[%emt 0:00:05]} Qd6+ {[%emt 0:00:05]} 38. g3 {[%emt 0:00:05]} hxg3+ {[%emt 0:00:05]} 39. Bxg3 {[%emt 0:00:05]} Qc6 {[%emt 0:00:00]} 40. Rc4 {[%emt 0:00:39]} Qa6 {[%emt 0:00:09]} 41. Bb8 {[%emt 0:00:13]} Qa2+ {[%emt 0:00:01]} 42. Kg3 {[%emt 0:00:00]} Qa6 {[%emt 0:00:14]} 43. Qe8+ {[%emt 0:00:05]} Kh7 {[%emt 0:00:05]} 44. Qe4+ {[%emt 0:00:00]} f5 {[%emt 0:00:05]} 45. Qxf5+ {[%emt 0:00:04]} Kh6 {[%emt 0:00:06]} 46. Qe4 {[%emt 0:00:03]} 1-0

[Event "Redbull chessmasters 2019"]
[Site "Istambul"]
[Date "2019.11.24"]
[Round "6.3"]
[White "Kesgin, Halit Kaan"]
[Black "Gunduz, Umut Erdem"]
[Result "1/2-1/2"]
[ECO "C90"]
[WhiteElo "2061"]
[BlackElo "2172"]
[Annotator "NA"]
[PlyCount "117"]
[EventDate "2019.11.23"]
[EventType "k.o."]
[EventCountry "TUR"]
[SourceTitle "playchess.com"]
[Source "ChessBase"]
[SourceQuality "1"]
[TimeControl "600+5"]

1. e4 e5 2. Nf3 Nc6 3. Bb5 a6 4. Ba4 Nf6 5. d3 b5 6. Bb3 Be7 7. O-O d6 8. c3 O-O 9. Re1 Na5 10. Bc2 c5 11. Nbd2 Re8 12. h3 Bf8 13. Nf1 g6 14. Ng3 Bg7 15. Be3 h6 16. Qd2 Kh7 17. Rad1 Bb7 18. b4 cxb4 19. cxb4 Nc6 20. d4 exd4 21. Nxd4 Ne5 22. Bf4 Rc8 23. Bxe5 dxe5 24. Nf3 Qb6 25. Bb3 Red8 26. Qe2 Qc7 {[%emt 0:05:26]} 27. Kh2 {[%emt 0:08:57]} Qe7 {[%emt 0:00:05]} 28. a3 {[%emt 0:00:05]} Nd7 {[%emt 0:00:05]} 29. Qe3 {[%emt 0:00:11]} Nb8 {[%emt 0:01:07]} 30. Qb6 {[%emt 0:00:48]} Nc6 {[%emt 0:00:53]} 31. Bd5 {[%emt 0:00:06]} Rd6 {[%emt 0:00:06]} 32. Nf1 {[%emt 0:00:53]} Rc7 {[%emt 0:00:36]} 33. Rc1 {[%emt 0:00:27]} Rcd7 {[%emt 0:03:25]} 34. Bxc6 {[%emt 0:00:15]} Rc7 {[%emt 0:00:01]} 35. Ne3 {[%emt 0:00:38]} Rdxc6 {[%emt 0:00:21]} 36. Rxc6 {[%emt 0:00:02]} Rxc6 {[%emt 0:00:05]} 37. Qa5 {[%emt 0:00:10]} Rd6 {[%emt 0:00:05]} 38. Nf1 {[%emt 0:00:05]} f5 {[%emt 0:00:05]} 39. Ng3 {[%emt 0:00:28]} Qf7 {[%emt 0:00:34]} 40. a4 {[%emt 0:00:05]} fxe4 {[%emt 0:00:05]} 41. Nxe4 {[%emt 0:00:05]} Qf4+ {[%emt 0:00:06]} 42. Ng3 {[%emt 0:00:01]} Bxf3 {[%emt 0:00:12]} 43. gxf3 {[%emt 0:00:02]} Qxf3 {[%emt 0:00:07]} 44. Re2 {[%emt 0:00:01]} e4 {[%emt 0:00:06]} 45. Qc7 {[%emt 0:00:03]} Rf6 {[%emt 0:00:07]} 46. axb5 {[%emt 0:00:15]} axb5 {[%emt 0:00:05]} 47. Qc5 {[%emt 0:00:05]} h5 {[%emt 0:00:05]} 48. Qc2 {[%emt 0:00:05]} e3 {[%emt 0:00:05]} 49. fxe3 {[%emt 0:00:04]} Rc6 {[%emt 0:00:01]} 50. Qe4 {[%emt 0:00:08]} Qxe4 {[%emt 0:00:09]} 51. Nxe4 {[%emt 0:00:05]} Rc4 {[%emt 0:00:06]} 52. Ng5+ {[%emt 0:00:00]} Kh6 {[%emt 0:00:03]} 53. Nf7+ {[%emt 0:00:01]} Kh7 {[%emt 0:00:00]} 54. Rd2 {[%emt 0:00:12]} Rxb4 {[%emt 0:00:03]} 55. Ng5+ {[%emt 0:00:00]} Kh6 {[%emt 0:00:02]} 56. Nf7+ {[%emt 0:00:00]} Kh7 {[%emt 0:00:05]} 57. Ng5+ {[%emt 0:00:00]} Kh6 {[%emt 0:00:10]} 58. Nf7+ {[%emt 0:00:13]} Kh7 {[%emt 0:00:10]} 59. Ng5+ {[%emt 0:00:02]} 1/2-1/2

[Event "Redbull chessmasters 2019"]
[Site "Istambul"]
[Date "2019.11.24"]
[Round "6.4"]
[White "Kalayci, Nino"]
[Black "Yildiz Kadioglu, Betul Cemre"]
[Result "0-1"]
[ECO "D03"]
[WhiteElo "1852"]
[BlackElo "2338"]
[Annotator "NA"]
[PlyCount "76"]
[EventDate "2019.11.23"]
[EventType "k.o."]
[EventCountry "TUR"]
[SourceTitle "playchess.com"]
[Source "ChessBase"]
[SourceQuality "1"]
[TimeControl "600+5"]

1. d4 d5 2. Nf3 Nf6 3. Bg5 Ne4 4. Bf4 c5 5. e3 Nc6 6. c3 Qb6 7. Qb3 c4 8. Qxb6 axb6 9. Nbd2 Bf5 10. Nh4 g6 11. Nxe4 Bxe4 12. f3 Bc2 13. Kd2 Bb3 {[%emt 0:04:57]} 14. e4 {[%emt 0:09:21]} dxe4 {[%emt 0:00:05]} 15. fxe4 {[%emt 0:00:05]} f6 {[%emt 0:01:40]} 16. Nf3 {[%emt 0:00:18]} g5 {[%emt 0:01:06]} 17. Bc7 {[%emt 0:00:52]} g4 {[%emt 0:00:02]} 18. Nh4 {[%emt 0:00:37]} Bh6+ {[%emt 0:00:27]} 19. Ke2 {[%emt 0:00:03]} Bc2 {[%emt 0:00:56]} 20. Nf5 {[%emt 0:00:12]} Bg5 {[%emt 0:00:01]} 21. Ng3 {[%emt 0:00:08]} b5 {[%emt 0:00:09]} 22. h4 {[%emt 0:00:07]} gxh3 {[%emt 0:00:05]} 23. Rxh3 {[%emt 0:00:02]} Kd7 {[%emt 0:00:17]} 24. Bb6 {[%emt 0:00:01]} b4 {[%emt 0:00:04]} 25. Kf3 {[%emt 0:00:08]} bxc3 {[%emt 0:00:07]} 26. bxc3 {[%emt 0:00:01]} Ra3 {[%emt 0:00:06]} 27. Kg4 {[%emt 0:00:14]} Rxc3 {[%emt 0:00:18]} 28. Ne2 {[%emt 0:00:00]} Rxh3 {[%emt 0:00:12]} 29. gxh3 {[%emt 0:00:02]} Bxe4 {[%emt 0:00:05]} 30. Nc3 {[%emt 0:00:05]} h5+ {[%emt 0:00:05]} 31. Kg3 {[%emt 0:00:05]} h4+ {[%emt 0:00:05]} 32. Kg4 {[%emt 0:00:05]} Bd3 {[%emt 0:00:05]} 33. Bxd3 {[%emt 0:00:05]} cxd3 {[%emt 0:00:05]} 34. Rd1 {[%emt 0:00:05]} d2 {[%emt 0:00:05]} 35. Ne4 {[%emt 0:00:05]} Rg8 {[%emt 0:00:05]} 36. Kh5 {[%emt 0:00:05]} Be3 {[%emt 0:00:05]} 37. Nxd2 {[%emt 0:00:05]} Rg5+ {[%emt 0:00:05]} 38. Kxh4 {[%emt 0:00:05]} Bf2# {[%emt 0:00:58]} 0-1